bitfinex/quotes_SOLUSD_20240905
["timestamp","ask_amount","ask_price","bid_price","bid_amount"]
[1725558353167,7.6717,130.35,130.31,50.38746661]
[1725558353369,1.91762154,130.37,130.29,56.1219]
[1725558353594,7.6729,130.33,130.29,56.1219]
[1725558353894,1.91762154,130.37,130.29,63.7968]
[1725558354194,7.6728,130.33,130.29,56.1219]
[1725558354968,7.6728,130.33,130.29,63.7969]
[1725558356083,7.6724,130.34,130.29,63.7969]
[1725558358098,1.91786123,130.37,130.29,56.1219]
[1725558358394,7.6734,130.32,130.29,6.1219]
[1725558358564,19.1813,130.34,130.27,15.9689]
[1725558358772,7.6747,130.3,130.27,65.9689]
[1725558359075,21.0951765,130.37,130.29,50.0]
[1725558359383,20.0,130.36,130.27,85.1589]
[1725558359575,21.09776608,130.35,130.27,85.1589]
[1725558359775,20.0,130.34,130.27,85.1589]
[1725558360799,7.6736,130.32,130.29,50.0]
[1725558360978,7.6724,130.34,130.3,9.01713007]
[1725558361996,9.92879658,130.4,130.33,50.0]
[1725558362174,8.01100132,130.4,130.34,1.53385015]
[1725558362493,7.6711,130.36,130.32,7.6732]
[1725558363593,7.6706,130.37,130.33,59.20681099]
[1725558363977,7.6706,130.37,130.33,57.6727]
[1725558364180,21.09083983,130.39,130.33,50.0]
[1725558364479,7.6712,130.36,130.33,50.0]
[1725558364683,7.6717,130.35,130.31,76.8584]
[1725558364874,7.6729,130.33,130.29,7.6751]
[1725558365794,7.6724,130.34,130.3,57.6744]
[1725558366295,7.6717,130.35,130.31,9.20807837]
[1725558366495,1.91770806,130.39,130.35,7.6712]
[1725558366672,7.6704,130.37,130.34,19.1795]
[1725558366992,10.42565076,130.41,130.31,19.184]
[1725558367192,7.6733,130.33,130.28,76.8638]
[1725558367995,7.6735,130.32,130.28,7.6756]
[1725558368370,19.1808,130.34,130.27,42.8358]
[1725558368371,7.6741,130.31,130.27,42.8358]
[1725558368573,7.6747,130.3,130.26,7.6769]
[1725558368791,21.91828606,130.33,130.25,6.4504]
[1725558368998,21.91868833,130.33,130.25,6.4504]
[1725558369177,1.9185388,130.32,130.25,6.4504]
[1725558370275,7.6747,130.3,130.26,7.6768]
[1725558370573,7.674,130.31,130.27,9.21107479]
[1725558370773,7.674,130.31,130.27,7.6762]
[1725558371502,7.6735,130.32,130.28,59.2103128]
[1725558371792,7.6722,130.34,130.3,7.6744]
[1725558371996,7.6722,130.34,130.31,1.53441926]
[1725558372404,7.6717,130.35,130.31,9.20841926]
[1725558372699,1.91779866,130.39,130.32,69.1832]
[1725558372999,1.91779866,130.39,130.33,1.53406638]
[1725558373202,21.0903181,130.4,130.33,1.53406638]
[1725558373377,7.6708,130.37,130.33,9.20676638]
[1725558373570,7.6708,130.37,130.33,7.6727]
[1725558375285,1.917509,130.39,130.32,19.1832]
[1725558375484,7.6718,130.35,130.32,19.1832]
[1725558375796,7.6711,130.36,130.33,1.53424656]
[1725558376104,1.91767957,130.38,130.29,19.187]
[1725558376499,1.91767957,130.38,130.3,50.0]
[1725558376692,21.91767957,130.38,130.31,1.53423009]
[1725558376886,20.0,130.38,130.31,20.71903009]
[1725558377098,7.6708,130.37,130.33,19.1818]
[1725558377301,7.6708,130.37,130.34,1.53399956]
[1725558377302,7.6705,130.37,130.34,1.53399956]
[1725558378204,2.41761761,130.41,130.35,19.1788]
[1725558378406,7.6687,130.4,130.37,7.6704]
[1725558380584,7.6693,130.39,130.35,26.85]
[1725558380788,7.6693,130.39,130.36,7.671]
[1725558381079,7.6693,130.39,130.35,26.8502]
[1725558381499,7.6693,130.39,130.36,1.53379935]
[1725558382394,0.5,130.41,130.4,7.6687]
[1725558382883,0.5,130.41,130.4,8.87562276]
[1725558383614,0.5,130.41,130.4,7.6687]
[1725558383989,0.5,130.41,130.4,9.05997182]
[1725558388205,0.5,130.41,130.4,57.6687]
[1725558388511,0.5,130.41,130.39,32.8531]
[1725558388713,8.1681,130.41,130.38,16.3167]
[1725558388901,0.5,130.41,130.38,16.3167]
[1725558389216,8.1682,130.41,130.37,7.6703]
[1725558390122,7.6687,130.4,130.36,26.8474]
[1725558390326,7.67,130.38,130.34,24.1829]
[1725558390497,7.6711,130.36,130.33,19.1807]
[1725558390693,7.6708,130.37,130.33,26.8534]
[1725558390888,0.5,130.41,130.35,50.0]
[1725558391206,0.5,130.41,130.31,6.1564]
[1725558391207,0.5,130.41,130.37,50.0]
[1725558391526,0.5,130.41,130.37,57.6701]
[1725558391814,0.5,130.41,130.38,9.20328695]
[1725558392185,0.5,130.41,130.38,7.6698]
[1725558393317,8.1682,130.41,130.37,7.6704]
[1725558393492,7.6693,130.39,130.33,107.5431]
[1725558393691,0.5,130.41,130.33,88.3623]
[1725558393919,7.669,130.4,130.35,26.8501]
[1725558394292,0.5,130.41,130.38,7.6697]
[1725558394500,8.1685,130.41,130.38,1.51599037]
[1725558395597,8.1685,130.41,130.37,26.8459]
[1725558395801,7.6687,130.4,130.37,19.1757]
[1725558396018,8.1681,130.41,130.37,76.8457]
[1725558396394,0.5,130.41,130.39,50.0]
[1725558396614,0.5,130.41,130.4,8.62458738]
[1725558396913,0.5,130.41,130.4,9.20188664]
[1725558399401,1.91602173,130.51,130.46,7.6646]
[1725558399612,1.91602173,130.51,130.45,26.8284]
[1725558399613,7.6639,130.49,130.45,26.8284]
[1725558399920,21.07152213,130.51,130.42,107.5027]
[1725558400130,19.1558,130.51,130.44,50.0]
[1725558400425,8.01849772,130.52,130.42,38.3352]
[1725558400426,6.1028,130.52,130.46,50.0]
[1725558400612,7.6624,130.51,130.47,9.19634593]
[1725558402509,38.40743616,130.54,130.48,70.69197185]
[1725558402510,7.6612,130.53,130.48,70.69197185]
[1725558402713,0.8568878,130.54,130.5,50.0]
[1725558402714,8.5173878,130.54,130.5,50.0]
[1725558402931,8.5173878,130.54,130.51,1.53198164]
[1725558403226,0.8568878,130.54,130.5,19.1568]
[1725558404429,8.5177878,130.54,130.5,26.8195]
[1725558404731,8.5177878,130.54,130.5,19.1568]
[1725558404732,7.6611,130.53,130.5,19.1568]
[1725558405023,1.9151481,130.52,130.45,21.6241]
[1725558405229,7.6632,130.5,130.46,7.6648]
[1725558405415,7.6615,130.53,130.48,7.6636]
[1725558405729,7.6617,130.52,130.49,1.53221144]
[1725558405910,7.6617,130.52,130.48,7.6636]
[1725558406633,7.6617,130.52,130.49,1.53228742]
[1725558407417,7.6623,130.51,130.47,57.6644]
[1725558407711,7.6618,130.52,130.48,9.19619788]
[1725558407920,7.6618,130.52,130.49,1.53221172]
[1725558408127,0.8568878,130.54,130.49,1.53221172]
[1725558408128,0.8568878,130.54,130.49,51.53221172]
[1725558408927,8.5176878,130.54,130.5,7.6627]
[1725558409429,8.5176878,130.54,130.51,1.53201573]
[1725558410530,8.5176878,130.54,130.5,7.6627]
[1725558410736,8.5176878,130.54,130.51,1.53201695]
[1725558410943,8.5176878,130.54,130.52,1.53200991]
[1725558411229,8.5176878,130.54,130.5,7.6627]
[1725558411415,8.5176878,130.54,130.5,26.8196]
[1725558411620,0.8568878,130.54,130.48,7.6636]
[1725558411929,7.6618,130.52,130.48,7.6636]
[1725558412708,7.6612,130.53,130.49,7.6633]
[1725558414437,7.662,130.52,130.48,7.6638]
[1725558415038,7.6612,130.53,130.49,7.6633]
[1725558415207,7.6612,130.53,130.5,1.53217041]
[1725558416352,0.8568878,130.54,130.51,7.6619]
[1725558416634,8.5173878,130.54,130.51,26.8173]
[1725558416809,8.5173878,130.54,130.49,50.0]
[1725558416810,7.6611,130.53,130.49,50.0]
[1725558417224,23.7136382,130.52,130.4,22.1676]
[1725558417542,23.7136382,130.52,130.37,50.0]
[1725558417543,7.6685,130.41,130.37,50.0]
[1725558417715,7.6676,130.42,130.36,22.1676]
[1725558417914,7.6686,130.41,130.36,22.1676]
[1725558418132,7.669,130.4,130.36,22.1676]
[1725558418332,19.168,130.43,130.36,22.1676]
[1725558418519,7.67,130.38,130.33,50.0]
[1725558418724,7.67,130.38,130.35,50.0]
[1725558419109,7.67,130.38,130.33,50.0]
[1725558419435,7.6717,130.35,130.33,50.0]
[1725558419737,7.6723,130.34,130.33,50.0]
[1725558420541,1.91747577,130.38,130.29,50.0]
[1725558420835,19.1755,130.38,130.31,50.0]
[1725558421038,7.6733,130.33,130.31,50.0]
[1725558421421,1.91762875,130.4,130.33,50.0]
[1725558421628,7.6711,130.36,130.33,50.0]
[1725558422549,20.0,130.4,130.33,50.0]
[1725558422834,20.0,130.4,130.33,57.6727]
[1725558423343,7.6703,130.38,130.33,57.6727]
[1725558423718,21.08388725,130.44,130.35,50.0]
[1725558424024,21.08388725,130.44,130.36,1.53351708]
[1725558424231,21.08388725,130.44,130.35,50.0]
[1725558424530,21.08388725,130.44,130.37,50.0]
[1725558424531,7.6688,130.4,130.37,50.0]
[1725558424743,1.91694921,130.48,130.38,1.53355937]
[1725558425043,19.1577,130.5,130.43,7.6668]
[1725558425217,1.91617468,130.49,130.44,1.53256778]
[1725558425417,7.6649,130.47,130.44,1.53256778]
[1725558425834,7.6649,130.47,130.43,50.0]
[1725558426219,1.91617468,130.52,130.45,57.6657]
[1725558426426,0.8568878,130.54,130.46,1.53244708]
[1725558426627,0.8568878,130.54,130.48,50.0]
[1725558426837,0.8568878,130.54,130.49,9.19500115]
[1725558427036,8.5174878,130.54,130.49,7.6629]
[1725558427339,0.8568878,130.54,130.5,57.6627]
[1725558427541,0.8568878,130.54,130.5,59.19476507]
[1725558428630,0.8568878,130.54,130.5,57.6627]
[1725558429626,0.8568878,130.54,130.49,7.6633]
[1725558430529,0.8568878,130.54,130.48,26.8229]
[1725558430840,0.8568878,130.54,130.48,19.159]
[1725558431048,7.6633,130.5,130.45,76.8288]
[1725558431238,7.6633,130.5,130.45,69.1636]
[1725558431936,2.7725636,130.54,130.45,69.1636]
[1725558431937,19.1532,130.53,130.45,19.1636]
[1725558432131,21.91566974,130.52,130.45,19.1636]
[1725558432335,7.6635,130.49,130.45,69.1636]
[1725558432523,7.6635,130.49,130.45,19.1636]
[1725558433031,7.6635,130.49,130.45,76.8292]
[1725558433233,19.156,130.51,130.44,15.5612]
[1725558433448,19.156,130.51,130.44,23.2271]
[1725558433744,21.07166428,130.51,130.43,57.6668]
[1725558433948,21.07166428,130.51,130.43,57.6669]
[1725558433949,7.6648,130.47,130.43,57.6669]
[1725558434249,58.3084,130.52,130.42,6.0049]
[1725558434250,7.6657,130.46,130.42,6.0049]
[1725558434438,7.6657,130.46,130.41,57.6676]
[1725558434439,7.6647,130.47,130.41,69.1696]
[1725558434635,27.6621,130.52,130.47,7.6645]
[1725558434838,20.0,130.52,130.46,26.8273]
[1725558435149,21.91559311,130.53,130.46,26.8273]
[1725558435323,7.6622,130.51,130.46,26.8273]
[1725558435521,7.663,130.5,130.46,19.1623]
[1725558435725,7.6644,130.48,130.43,26.8332]
[1725558435941,7.6648,130.47,130.43,19.1664]
[1725558437137,7.6648,130.47,130.43,26.8331]
[1725558437332,7.6641,130.48,130.43,26.8331]
[1725558437530,1.91607143,130.5,130.43,26.8331]
[1725558437531,9.57927143,130.5,130.43,19.1664]
[1725558437733,20.0,130.53,130.45,7.6652]
[1725558438447,19.1546,130.52,130.44,7.6661]
[1725558438621,21.91587882,130.51,130.44,7.6661]
[1725558439046,7.6636,130.49,130.45,7.6657]
[1725558439450,7.6628,130.5,130.46,8.67107658]
[1725558439632,7.6628,130.5,130.41,38.3383]
[1725558439633,2.77263122,130.54,130.47,51.00530441]
[1725558439829,0.8568878,130.54,130.47,50.0]
[1725558440126,2.77216022,130.54,130.47,50.0]
[1725558440323,0.8568878,130.54,130.48,1.06100829]
[1725558440543,0.8568878,130.54,130.49,1.06092698]
[1725558440745,8.5177878,130.54,130.49,51.06092698]
[1725558440932,8.5177878,130.54,130.5,45.0]
[1725558441137,8.5177878,130.54,130.51,1.06777104]
[1725558441352,8.5177878,130.54,130.5,52.6627]
[1725558441353,8.5177878,130.54,130.52,1.53198704]
[1725558441651,8.5177878,130.54,130.43,15.0838]
[1725558441652,54.7980878,130.54,130.43,15.0838]
[1725558441853,54.7980878,130.54,130.42,50.0]
[1725558441854,19.1552,130.52,130.42,50.0]
[1725558442029,1.91582146,130.51,130.42,57.6673]
[1725558442229,7.6641,130.48,130.42,50.0]
[1725558442452,7.6648,130.47,130.42,50.0]
[1725558443134,7.6648,130.47,130.4,6.1258]
[1725558443135,7.6626,130.51,130.47,50.0]
[1725558443334,7.6626,130.51,130.48,1.53224686]
[1725558443547,19.153,130.53,130.45,50.0]
[1725558443749,39.1611878,130.54,130.43,50.0]
[1725558443936,19.1562,130.51,130.43,50.0]
[1725558444658,7.6662,130.45,130.43,50.0]
[1725558445833,7.6669,130.43,130.41,50.0]
[1725558446032,7.6665,130.44,130.41,50.0]
[1725558448463,19.1618,130.47,130.41,50.0]
[1725558448761,7.6671,130.43,130.41,50.0]
[1725558449463,7.6665,130.44,130.41,50.0]
[1725558450046,7.6658,130.45,130.41,57.668]
[1725558450238,7.664,130.48,130.44,7.6662]
[1725558450456,39.1582,130.5,130.43,57.6667]
[1725558450457,7.6646,130.47,130.43,57.6667]
[1725558451262,7.6652,130.46,130.43,50.0]
[1725558451635,7.6652,130.46,130.42,26.8357]
[1725558452360,7.6647,130.47,130.43,57.6669]
[1725558452666,7.6642,130.48,130.43,50.0]
[1725558452844,7.6626,130.51,130.47,50.0]
[1725558453050,7.6626,130.51,130.47,57.6645]
[1725558453274,7.6626,130.51,130.48,1.53231539]
[1725558453565,7.6626,130.51,130.47,57.6645]
[1725558453864,21.92468204,130.54,130.46,19.1627]
[1725558454245,7.6626,130.51,130.47,7.6644]
[1725558454433,7.6626,130.51,130.47,57.6644]
[1725558454837,7.6612,130.53,130.49,57.6634]
[1725558455964,7.6612,130.53,130.5,1.53207868]
[1725558456664,0.8568878,130.54,130.51,50.0]
[1725558456974,8.5174878,130.54,130.5,26.8191]
[1725558458150,0.8568878,130.54,130.53,19.1526]
[1725558461164,8.5172878,130.54,130.5,26.8183]
[1725558461348,0.8568878,130.54,130.51,50.0]
[1725558461547,0.8568878,130.54,130.52,9.19330746]
[1725558461750,0.8568878,130.54,130.53,57.661]
[1725558463338,0.8568878,130.54,130.52,19.1536]
[1725558463546,0.8568878,130.54,130.51,7.6621]
[1725558464868,0.8568878,130.54,130.52,7.6613]
[1725558465057,0.8568878,130.54,130.53,57.661]
[1725558465260,0.8568878,130.54,130.53,77.9873566]
[1725558465983,7.6553,130.63,130.59,7.6569]
[1725558466273,0.8568878,130.68,130.64,26.7903]
[1725558466478,0.8568878,130.68,130.65,1.5304536]
[1725558466768,8.5090878,130.68,130.65,1.5304536]
[1725558466972,8.5090878,130.68,130.64,19.1359]
[1725558467276,0.8568878,130.68,130.66,69.1324]
[1725558467475,0.8568878,130.68,130.66,50.0]
[1725558467653,0.8568878,130.68,130.64,57.6541]
[1725558467855,0.8568878,130.68,130.65,7.6537]
[1725558468372,0.8568878,130.68,130.67,57.6528]
[1725558468868,0.8568878,130.68,130.67,59.18258839]
[1725558469085,0.8568878,130.68,130.67,57.6528]
[1725558469850,0.8568878,130.68,130.67,58.18009622]
[1725558470148,0.8568878,130.68,130.67,57.6528]
[1725558472358,0.8568878,130.68,130.66,26.7867]
[1725558472561,0.8568878,130.68,130.65,50.0]
[1725558472964,0.8568878,130.68,130.65,57.6535]
[1725558473579,0.8568878,130.68,130.66,7.6534]
[1725558474158,0.8568878,130.68,130.66,8.99123159]
[1725558474355,0.8568878,130.68,130.66,7.6534]
[1725558474586,0.8568878,130.68,130.67,57.6528]
[1725558474757,0.8568878,130.68,130.67,58.90678159]
[1725558476567,0.8568878,130.68,130.67,57.6528]
[1725558476996,0.8568878,130.68,130.65,69.1341]
[1725558477508,0.8568878,130.68,130.65,19.1341]
[1725558477816,0.8568878,130.68,130.65,69.1341]
[1725558478314,0.8568878,130.68,130.65,76.788]
[1725558479105,0.8568878,130.68,130.65,26.788]
[1725558479409,8.5091878,130.68,130.64,1.53026189]
[1725558479910,0.8568878,130.68,130.65,50.0]
[1725558480313,8.5094878,130.68,130.64,19.1361]
[1725558480819,7.6533,130.67,130.63,50.0]
[1725558481402,0.8568878,130.68,130.61,92.5071]
[1725558481403,7.6535,130.66,130.61,92.5071]
[1725558481610,7.6528,130.67,130.63,7.6551]
[1725558481988,8.5092878,130.68,130.64,7.6545]
[1725558482190,1.91304221,130.67,130.61,7.6561]
[1725558482385,1.91304221,130.67,130.57,50.0]
[1725558482620,1.91304221,130.67,130.53,15.4177]
[1725558482621,19.1355,130.65,130.55,50.0]
[1725558482808,7.6592,130.57,130.53,56.0342]
[1725558483125,19.1442,130.59,130.51,50.0]
[1725558483414,7.6603,130.55,130.5,26.8191]
[1725558483594,1.91476783,130.58,130.49,50.0]
[1725558483595,7.6615,130.53,130.49,50.0]
[1725558483915,7.6615,130.53,130.48,7.6638]
[1725558484101,7.6615,130.53,130.49,50.0]
[1725558484299,7.6615,130.53,130.48,7.6638]
[1725558484504,7.6615,130.53,130.49,57.6633]
[1725558484691,7.6594,130.56,130.51,57.6621]
[1725558485284,7.6588,130.57,130.51,50.0]
[1725558485510,7.6588,130.57,130.51,57.6617]
[1725558485896,7.6588,130.57,130.52,7.6614]
[1725558486527,7.6582,130.58,130.53,7.6608]
[1725558486723,9.57099759,130.61,130.53,50.0]
[1725558487040,1.91427819,130.63,130.58,7.658]
[1725558487325,1.91401996,130.64,130.59,7.6575]
[1725558487490,7.6553,130.63,130.58,26.8028]
[1725558487695,7.6547,130.64,130.59,1.53119348]
[1725558489296,7.6536,130.66,130.61,7.6559]
[1725558489801,7.6542,130.65,130.61,7.6559]
[1725558489994,7.6547,130.64,130.6,19.1417]
[1725558491094,7.6547,130.64,130.58,50.0]
[1725558491095,7.6557,130.63,130.58,57.658]
[1725558491295,7.6557,130.63,130.58,7.658]
[1725558491500,7.6557,130.63,130.59,7.6574]
[1725558491808,7.6557,130.63,130.58,57.658]
[1725558492015,7.6557,130.63,130.58,7.658]
[1725558492418,7.3473878,130.68,130.54,69.1503]
[1725558492419,1.91392816,130.62,130.54,69.1503]
[1725558492597,7.658,130.59,130.54,69.1503]
[1725558492790,20.0,130.67,130.56,69.1478]
[1725558492996,45.0,130.66,130.56,69.1478]
[1725558493196,45.0,130.66,130.53,19.1519]
[1725558493197,20.0,130.65,130.53,19.1519]
[1725558493400,83.2735,130.64,130.51,391.2]
[1725558493623,6.142,130.62,130.51,391.2]
[1725558493918,7.6588,130.57,130.53,50.0]
[1725558494415,7.6583,130.58,130.53,57.6606]
[1725558494803,7.6589,130.57,130.53,50.0]
[1725558495005,7.6582,130.58,130.53,57.6608]
[1725558495508,7.6589,130.57,130.53,7.6608]
[1725558495708,7.6595,130.56,130.52,19.1537]
[1725558496905,21.06069929,130.58,130.5,6.6343]
[1725558497221,7.6615,130.53,130.49,76.8208]
[1725558498116,21.91505886,130.57,130.5,7.6628]
[1725558498305,7.6601,130.55,130.51,7.6622]
[1725558499436,7.6601,130.55,130.5,7.6626]
[1725558499933,7.6605,130.54,130.5,7.6626]
[1725558500099,7.661,130.53,130.49,76.821]
[1725558500423,21.91505886,130.57,130.49,76.821]
[1725558500424,7.6606,130.54,130.49,76.821]
[1725558500802,21.91505886,130.57,130.49,50.0]
[1725558501008,1.91517588,130.6,130.53,7.6609]
[1725558501205,1.91517588,130.6,130.52,50.0]
[1725558501617,7.6582,130.58,130.52,69.1529]
[1725558501804,7.6582,130.58,130.53,7.6608]
[1725558502417,7.6582,130.58,130.54,7.6603]
[1725558503010,7.6577,130.59,130.55,7.6598]
[1725558503822,7.6582,130.58,130.54,26.8112]
[1725558504026,7.6577,130.59,130.55,7.6598]
[1725558504210,7.6571,130.6,130.56,9.19073699]
[1725558504818,1.91425002,130.63,130.57,1.53140002]
[1725558505012,1.91425002,130.63,130.54,38.3023]
[1725558505013,7.658,130.59,130.55,7.6594]
[1725558506307,19.141,130.61,130.54,7.6602]
[1725558506634,21.91458067,130.6,130.54,7.6602]
[1725558506831,7.6598,130.56,130.51,7.6616]
[1725558507131,1.91484219,130.58,130.51,398.8616]
[1725558507333,21.91484219,130.58,130.51,398.8616]
[1725558507636,7.66,130.55,130.51,398.8616]
[1725558508009,7.6595,130.56,130.52,7.6616]
[1725558508209,20.0,130.58,130.53,1.53186201]
[1725558508412,7.6582,130.58,130.54,7.6601]
[1725558508612,7.6582,130.58,130.55,1.53163626]
[1725558508813,7.6582,130.58,130.54,7.6601]
[1725558511822,7.6587,130.57,130.53,7.6608]
[1725558512332,1.91454533,130.6,130.54,69.1511]
[1725558512539,7.6573,130.6,130.56,7.6588]
[1725558512710,7.6573,130.6,130.57,1.53127844]
[1725558513023,7.6573,130.6,130.56,7.6588]
[1725558513207,7.6573,130.6,130.57,7.6587]
[1725558513411,25.3004,130.65,130.59,7.6572]
[1725558513606,25.3004,130.65,130.56,50.0]
[1725558513607,6.164,130.65,130.6,1.53117657]
[1725558513808,7.6561,130.62,130.58,7.658]
[1725558514020,7.6565,130.61,130.57,26.804]
[1725558514821,6.164,130.65,130.57,19.1454]
[1725558515134,7.6564,130.61,130.57,26.8036]
[1725558515337,7.6564,130.61,130.58,1.53125648]
[1725558515534,7.6559,130.62,130.58,9.18935648]
[1725558516237,7.6563,130.61,130.57,26.8039]
[1725558516439,7.6563,130.61,130.58,7.6581]
[1725558518832,7.6563,130.61,130.59,1.53120521]
[1725558519627,7.6563,130.61,130.58,7.6581]
[1725558521150,1.9140604,130.64,130.56,56.189]
[1725558521347,1.91355694,130.66,130.57,23.07]
[1725558521657,8.5090878,130.68,130.64,19.1365]
[1725558522120,7.6528,130.67,130.64,19.1365]
[1725558522325,7.6528,130.67,130.63,7.6546]
[1725558522641,7.6535,130.66,130.62,7.6557]
[1725558524348,1.91345026,130.65,130.58,69.1448]
[1725558524521,0.8568878,130.68,130.58,69.1448]
[1725558524522,7.6553,130.63,130.58,69.1448]
[1725558524939,7.6547,130.64,130.59,7.6574]
[1725558525444,7.6541,130.65,130.6,57.6566]
[1725558527527,7.6541,130.65,130.6,7.6566]
[1725558527731,7.6563,130.62,130.58,19.1448]
[1725558528330,7.6564,130.61,130.58,19.1448]
[1725558528651,7.6564,130.61,130.57,7.6585]
[1725558529031,1.91378341,130.64,130.58,7.658]
[1725558529238,21.91378341,130.64,130.58,7.658]
[1725558530337,7.6559,130.62,130.58,7.658]
[1725558533254,21.91378341,130.64,130.57,19.1464]
[1725558533255,7.6564,130.61,130.57,26.805]
[1725558534748,7.6564,130.61,130.58,1.53131128]
[1725558535147,1.91413348,130.6,130.54,34.5943]
[1725558535361,7.6609,130.54,130.5,7.6624]
[1725558535558,6.3218,130.58,130.52,7.6615]
[1725558535559,7.6594,130.56,130.52,7.6615]
[1725558536251,7.6599,130.55,130.51,57.662]
[1725558537037,7.6599,130.55,130.52,1.53194473]
[1725558537339,7.6599,130.55,130.51,57.662]
[1725558537846,7.6599,130.55,130.51,7.662]
[1725558538034,7.6597,130.56,130.52,9.19357323]
[1725558538235,7.6597,130.56,130.52,7.6615]
[1725558538445,1.91487585,130.59,130.51,50.0]
[1725558538766,21.91487585,130.59,130.53,50.0]
[1725558539233,7.6585,130.58,130.54,7.6601]
[1725558539435,7.6585,130.58,130.54,26.8112]
[1725558540632,1.91451459,130.62,130.55,51.53159329]
[1725558541450,1.91451459,130.62,130.56,19.1481]
[1725558541651,7.6567,130.61,130.57,9.18982796]
[1725558541834,7.6567,130.61,130.58,1.53132022]
[1725558542458,43.05975995,130.63,130.58,9.18942022]
[1725558542459,7.6559,130.62,130.58,9.18942022]
[1725558543345,7.6559,130.62,130.59,1.53123594]
[1725558543537,7.6553,130.63,130.59,7.6573]
[1725558546534,1.91404112,130.65,130.58,69.1445]
[1725558546741,1.91375599,130.67,130.6,50.0]
[1725558546941,7.6538,130.66,130.62,19.1391]
[1725558547267,7.6552,130.63,130.59,26.7994]
[1725558547441,7.6549,130.64,130.6,7.6569]
[1725558548444,7.6549,130.64,130.61,1.53102483]
[1725558548640,7.6542,130.65,130.61,9.18722483]
[1725558548967,0.8568878,130.68,130.61,20.67162483]
[1725558549257,0.8568878,130.68,130.63,7.6551]
[1725558549258,7.6531,130.67,130.63,7.6551]
[1725558549462,0.8568878,130.68,130.63,7.6551]
[1725558549463,0.8568878,130.68,130.64,1.53060466]
[1725558549769,0.8568878,130.68,130.65,9.1841699]
[1725558549941,0.8568878,130.68,130.65,28.3188699]
[1725558550266,0.8568878,130.68,130.66,9.18374217]
[1725558551961,0.8568878,130.68,130.66,7.6534]
[1725558552360,0.8568878,130.68,130.67,1.53023344]
[1725558552546,0.8568878,130.68,130.67,9.18303344]
[1725558552864,0.8568878,130.68,130.66,7.6534]
[1725558553575,0.8568878,130.68,130.65,26.7885]
[1725558554668,0.8568878,130.68,130.66,7.6534]
[1725558554850,0.8568878,130.68,130.67,7.6528]
[1725558555462,0.8568878,130.68,130.65,19.1347]
[1725558556158,0.8568878,130.68,130.66,7.6533]
[1725558556646,0.8568878,130.68,130.67,1.37834543]
[1725558557177,0.8568878,130.68,130.66,57.6533]
[1725558557557,0.8568878,130.68,130.67,26.7849]
[1725558557770,0.8568878,130.68,130.67,28.31470585]
[1725558557954,0.8568878,130.68,130.67,28.31470862]
[1725558558669,0.8568878,130.68,130.67,28.31478077]
[1725558559576,0.8568878,130.68,130.67,34.53528077]
[1725558562563,0.8568878,130.68,130.67,33.0054]
[1725558567954,0.8568878,130.68,130.67,33.53454011]
[1725558568174,0.8568878,130.68,130.67,34.53527176]
[1725558571187,20.18029261,130.81,130.79,50.0]
[1725558571188,0.8568878,130.81,130.79,50.0]
[1725558571691,0.8568878,130.81,130.8,9.17382034]
[1725558572772,0.8568878,130.81,130.8,7.6452]
[1725558572971,0.8568878,130.81,130.8,9.17363042]
[1725558573157,0.8568878,130.81,130.8,23.0671]
[1725558573485,0.8568878,130.81,130.8,7.6452]
[1725558573862,0.8568878,130.81,130.8,9.17364082]
[1725558574658,0.8568878,130.81,130.8,7.6452]
[1725558575363,0.8568878,130.81,130.8,9.17362395]
[1725558576080,0.8568878,130.81,130.8,7.6452]
[1725558576487,0.8568878,130.81,130.79,57.6457]